fUSD/lending_fUSD_20240209
["ID","MTS","AMOUNT","RATE_DAILY","PERIOD"]
[313614012,1707478290743,-506.63029788,0.00041917,31]
[313614013,1707478290753,-500.0,0.00041917,31]
[313614014,1707478290764,-500.0,0.00041917,31]
[313614015,1707478290773,-500.0,0.00041917,31]
[313614016,1707478290783,-608.18,0.00041917,31]
[313614017,1707478290793,-500.0,0.00041917,31]
[313614018,1707478290802,-500.0,0.00041917,31]
[313614019,1707478290812,-500.0,0.00041917,31]
[313614020,1707478290822,-500.0,0.00041917,31]
[313614021,1707478290831,-500.0,0.00041917,31]
[313614022,1707478290841,-864.71,0.00041917,31]
[313614023,1707478290850,-500.0,0.00041917,31]
[313614024,1707478290860,-500.0,0.00041917,31]
[313614025,1707478290869,-500.0,0.00041917,31]
[313614026,1707478290879,-500.0,0.00041917,31]
[313614027,1707478290889,-500.0,0.00041917,31]
[313614028,1707478290899,-505.38738371,0.00041917,31]
[313614029,1707478290908,-500.0,0.00041917,31]
[313614030,1707478290917,-500.0,0.00041917,31]
[313614031,1707478290927,-500.0,0.00041917,31]
[313614032,1707478290936,-500.0,0.00041917,31]
[313614033,1707478290945,-500.0,0.00041917,31]
[313614034,1707478290955,-500.0,0.00041917,31]
[313614035,1707478290964,-510.99584122,0.00041917,31]
[313614036,1707478290973,-507.17186394,0.00041917,31]
[313614037,1707478290983,-500.0,0.00041917,31]
[313614038,1707478290992,-500.0,0.00041917,31]
[313614039,1707478291001,-500.0,0.00041917,31]
[313614040,1707478291012,-500.0,0.00041917,31]
[313614041,1707478291021,-518.85405681,0.00041917,31]
[313614042,1707478291031,-1070.25,0.00041917,31]
[313614043,1707478291040,-500.0,0.00041917,31]
[313614044,1707478291049,-500.0,0.00041917,31]
[313614045,1707478291058,-500.0,0.00041917,31]
[313614046,1707478291068,-500.0,0.00041917,31]
[313614047,1707478291077,-500.0,0.00041917,31]
[313614048,1707478291086,-271.18474605,0.00041917,31]
[313614049,1707478291096,-150.0,0.00041917,31]
[313614050,1707478291105,-500.0,0.00041917,31]
[313614051,1707478291115,-500.0,0.00041917,31]
[313614052,1707478291124,-500.0,0.00041917,31]
[313614053,1707478291134,-500.0,0.00041917,31]
[313614054,1707478291143,-500.0,0.00041917,31]
[313614055,1707478291152,-500.0,0.00041917,7]
[313614056,1707478291162,-500.0,0.00041917,31]
[313614057,1707478291171,-500.0,0.00041917,31]
[313614058,1707478291180,-500.0,0.00041917,31]
[313614059,1707478291189,-500.0,0.00041917,31]
[313614060,1707478291199,-500.0,0.00041917,31]
[313614061,1707478291208,-500.0,0.00041917,31]
[313614062,1707478291217,-500.0,0.00041917,31]
[313614063,1707478291227,-500.0,0.00041917,31]
[313614064,1707478291237,-500.0,0.00041917,31]
[313614065,1707478291246,-500.0,0.00041917,31]
[313614066,1707478291256,-500.0,0.00041917,31]
[313614067,1707478291266,-500.0,0.00041917,31]
[313614068,1707478291275,-500.0,0.00041917,31]
[313614069,1707478291284,-509.22126255,0.00041917,31]
[313614070,1707478291294,-500.0,0.00041917,31]
[313614071,1707478291303,-500.0,0.00041917,31]
[313614072,1707478291312,-523.36,0.00041917,31]
[313614073,1707478291322,-500.0,0.00041917,31]
[313614074,1707478291332,-500.0,0.00041917,31]
[313614075,1707478291341,-500.0,0.00041917,31]
[313614076,1707478291350,-500.0,0.00041917,31]
[313614077,1707478291360,-500.0,0.00041917,31]
[313614078,1707478291369,-500.0,0.00041917,31]
[313614079,1707478291378,-505.26967378,0.00041917,31]
[313614080,1707478291388,-1000.0,0.00041917,7]
[313614081,1707478291397,-500.0,0.00041917,31]
[313614082,1707478291406,-500.0,0.00041917,31]
[313614083,1707478291415,-708.3,0.00041917,31]
[313614084,1707478291424,-500.0,0.00041917,30]
[313614085,1707478291433,-500.0,0.00041917,31]
[313614086,1707478291443,-502.6,0.00041917,31]
[313614087,1707478291452,-500.0,0.00041917,31]
[313614088,1707478291461,-500.0,0.00041917,31]
[313614089,1707478291471,-500.0,0.00041917,31]
[313614090,1707478291480,-500.0,0.00041917,31]
[313614091,1707478291490,-500.0,0.00041917,31]
[313614092,1707478291499,-500.0,0.00041917,31]
[313614093,1707478291509,-500.0,0.00041917,31]
[313614094,1707478291519,-500.0,0.00041917,31]
[313614095,1707478291528,-500.0,0.00041917,31]
[313614096,1707478291537,-419.78587319,0.00041917,31]
[313614097,1707478291547,-500.0,0.00041917,31]
[313614098,1707478291556,-592.61954746,0.00041917,31]
[313614099,1707478291565,-500.0,0.00041917,31]
[313614100,1707478291574,-500.0,0.00041917,31]
[313614101,1707478291583,-500.0,0.00041917,31]
[313614102,1707478291592,-608.26,0.00041917,31]
[313614103,1707478291601,-500.0,0.00041917,31]
[313614104,1707478291610,-500.0,0.00041917,31]
[313614105,1707478291620,-500.0,0.00041917,31]
[313614106,1707478291629,-500.0,0.00041917,31]
[313614107,1707478291639,-500.0,0.00041917,31]
[313614108,1707478291650,-500.0,0.00041917,31]
[313614109,1707478291665,-500.0,0.00041917,31]
[313614110,1707478291674,-500.0,0.00041917,31]
[313614111,1707478291684,-549.83610319,0.00041917,31]
[313614112,1707478291693,-500.0,0.00041917,31]
[313614113,1707478291702,-500.0,0.00041917,31]
[313614114,1707478291711,-750.95,0.00041917,31]
[313614115,1707478291721,-350.2861364,0.00041917,31]
[313614116,1707478291730,-500.0,0.00041917,31]
[313614117,1707478291740,-500.0,0.00041917,31]
[313614118,1707478291750,-500.0,0.00041917,31]
[313614119,1707478291759,-500.0,0.00041917,31]
[313614120,1707478291768,-500.0,0.00041917,31]
[313614121,1707478291777,-549.73,0.00041917,31]
[313614122,1707478291786,-500.0,0.00041917,31]
[313614123,1707478291795,-517.10777983,0.00041917,31]
[313614124,1707478291804,-934.6,0.00041917,31]
[313614125,1707478291814,-635.54,0.00041917,31]
[313614126,1707478291823,-500.0,0.00041917,31]
[313614127,1707478291832,-520.52248556,0.00041917,31]
[313614128,1707478291841,-1269.53,0.00041917,31]
[313614129,1707478291850,-2448.39,0.00041917,31]
[313614130,1707478291859,-500.0,0.00041917,31]
[313614131,1707478291868,-500.0,0.00041917,31]
[313614132,1707478291878,-500.0,0.00041917,31]
[313614133,1707478291887,-500.0,0.00041917,31]
[313614134,1707478291896,-500.0,0.00041917,31]
[313614135,1707478291906,-500.0,0.00041917,31]
[313614136,1707478291915,-500.0,0.00041917,31]
[313614137,1707478291925,-1060.63,0.00041917,31]
[313614138,1707478291934,-2558.72,0.00041917,31]
[313614139,1707478291944,-500.0,0.00041917,31]
[313614140,1707478291953,-587.57,0.00041917,31]
[313614141,1707478291963,-900.16,0.00041917,31]
[313614142,1707478291972,-500.0,0.00041917,31]
[313614143,1707478291982,-2441.83,0.00041917,31]
[313614144,1707478291991,-500.0,0.00041917,31]
[313614145,1707478292001,-500.0,0.00041917,31]
[313614146,1707478292011,-514.21588303,0.00041917,31]
[313614147,1707478292021,-593.44,0.00041917,31]
[313614148,1707478292030,-500.0,0.00041917,31]
[313614149,1707478292039,-500.0,0.00041917,31]
[313614150,1707478292049,-1916.19,0.00041917,31]
[313614151,1707478292058,-785.82,0.00041917,31]
[313614152,1707478292067,-573.24,0.00041917,31]
[313614153,1707478292076,-500.0,0.00041917,31]
[313614154,1707478292085,-1020.44,0.00041917,31]
[313614155,1707478292094,-500.0,0.00041917,31]
[313614156,1707478292104,-500.0,0.00041917,31]
[313614157,1707478292112,-500.0,0.00041917,31]
[313614158,1707478292122,-500.0,0.00041917,31]
[313614159,1707478292131,-500.0,0.00041917,31]
[313614160,1707478292141,-222.67014295,0.00041917,31]
[313614161,1707478292150,-1768.14,0.00041917,31]
[313614162,1707478292159,-23751.18,0.00041917,31]
[313614163,1707478292169,-5000.0,0.00041917,30]
[313614164,1707478292179,-1868.19,0.00041917,31]
[313614165,1707478292188,-500.0,0.00041917,31]
[313614166,1707478292198,-500.0,0.00041917,31]
[313614167,1707478292208,-500.0,0.00041917,31]
[313614168,1707478292218,-500.0,0.00041917,31]
[313614169,1707478292227,-527.69,0.00041917,31]
[313614170,1707478292236,-500.0,0.00041917,31]
[313614171,1707478292246,-500.0,0.00041917,31]
[313614172,1707478292256,-500.0,0.00041917,31]
[313614173,1707478292266,-500.0,0.00041917,31]
[313614174,1707478292275,-768.96,0.00041917,31]
[313614175,1707478292285,-500.0,0.00041917,31]
[313614176,1707478292294,-1820.33,0.00041917,31]
[313614177,1707478292303,-500.0,0.00041917,31]
[313614178,1707478292313,-758.25,0.00041917,31]
[313614179,1707478292323,-500.0,0.00041917,31]
[313614180,1707478292333,-512.73195879,0.00041917,31]
[313614181,1707478292343,-536.12740881,0.00041917,31]
[313614182,1707478292352,-500.0,0.00041917,31]
[313614183,1707478292362,-500.0,0.00041917,31]
[313614184,1707478292372,-502.65978286,0.00041917,31]
[313614185,1707478292382,-500.0,0.00041917,31]
[313614186,1707478292391,-508.42,0.00041917,31]
[313614187,1707478292401,-3159.24,0.00041917,31]
[313614188,1707478292411,-500.0,0.00041917,31]
[313614189,1707478292421,-500.0,0.00041917,31]
[313614190,1707478292430,-500.0,0.00041917,31]
[313614191,1707478292439,-12426.15,0.00041917,31]
[313614192,1707478292448,-1006.35,0.00041917,31]
[313614193,1707478292457,-2195.73,0.00041917,31]
[313614194,1707478292466,-500.0,0.00041917,31]
[313614195,1707478292476,-992.25,0.00041917,31]
[313614196,1707478292484,-500.0,0.00041917,31]
[313614197,1707478292493,-5742.83,0.00041917,31]
[313614198,1707478292503,-3030.08,0.00041917,31]
[313614199,1707478292513,-572.59,0.00041917,31]
[313614200,1707478292522,-500.0,0.00041917,31]
[313614201,1707478292531,-500.0,0.00041917,31]
[313614202,1707478292540,-1081.74,0.00041917,31]
[313614203,1707478292549,-501.34,0.00041917,31]
[313614204,1707478292558,-1094.41,0.00041917,31]
[313614205,1707478292568,-500.0,0.00041917,31]
[313614206,1707478292577,-538.35,0.00041917,31]
[313614207,1707478292586,-1858.51,0.00041917,31]
[313614208,1707478292595,-589.77,0.00041917,31]
[313614209,1707478292604,-3522.27,0.00041917,31]
[313614210,1707478292614,-500.0,0.00041917,31]
[313614211,1707478292623,-1019.32,0.00041917,31]
[313614212,1707478292632,-383.52433263,0.00041917,31]
[313614213,1707478292642,-500.0,0.00041917,31]
[313614214,1707478292655,-3738.97,0.00041917,31]
[313614215,1707478292665,-500.0,0.00041917,31]
[313614216,1707478292674,-1008.24,0.00041917,31]
[313614217,1707478292683,-500.0,0.00041917,31]
[313614218,1707478292692,-500.0,0.00041917,31]
[313614219,1707478292702,-500.0,0.00041917,31]
[313614220,1707478292710,-1350.59,0.00041917,31]
[313614221,1707478292720,-500.0,0.00041917,31]
[313614222,1707478292729,-559.59,0.00041917,31]
[313614223,1707478292739,-500.0,0.00041917,31]
[313614224,1707478292749,-5664.85,0.00041917,31]
[313614225,1707478292758,-500.0,0.00041917,31]
[313614226,1707478292767,-1718.44,0.00041917,31]
[313614227,1707478292777,-500.0,0.00041917,31]
[313614228,1707478292786,-33946.94,0.00041917,31]
[313614229,1707478292794,-509.8980487,0.00041917,31]
[313614230,1707478292803,-500.0,0.00041917,31]
[313614231,1707478292813,-500.0,0.00041917,31]
[313614232,1707478292823,-500.0,0.00041917,31]
[313614233,1707478292833,-500.0,0.00041917,31]
[313614234,1707478292846,-1574.94,0.00041917,31]
[313614235,1707478292856,-3084.08,0.00041917,31]
[313614236,1707478292865,-1417.78,0.00041917,31]
[313614237,1707478292875,-500.0,0.00041917,31]
[313614238,1707478292884,-500.0,0.00041917,31]
[313614239,1707478292894,-500.0,0.00041917,30]
[313614240,1707478292904,-500.0,0.00041917,31]
[313614241,1707478292914,-810.02,0.00041917,31]
[313614242,1707478292923,-3365.23,0.00041917,31]
[313614243,1707478292934,-2364.9,0.00041917,31]
[313614244,1707478292944,-500.0,0.00041917,31]
[313614245,1707478292954,-500.0,0.00041917,31]
[313614246,1707478292964,-686.99,0.00041917,31]
[313614247,1707478292975,-500.0,0.00041917,31]
[313614248,1707478292985,-571.56,0.00041917,31]
[313614249,1707478292995,-645.23,0.00041917,31]
[313614250,1707478293006,-7344.38,0.00041917,31]
[313614251,1707478293016,-782.45,0.00041917,31]
[313614252,1707478293026,-1197.03,0.00041917,31]
[313614253,1707478293037,-500.0,0.00041917,31]
[313614254,1707478293046,-9910.68,0.00041917,31]
[313614255,1707478293056,-500.0,0.00041917,31]
[313614256,1707478293066,-500.0,0.00041917,31]
[313614257,1707478293076,-966.84,0.00041917,31]
[313614258,1707478293086,-500.0,0.00041917,31]
[313614259,1707478293096,-662.91,0.00041917,31]
[313614260,1707478293107,-500.0,0.00041917,31]
[313614261,1707478293117,-500.0,0.00041917,31]
[313614262,1707478293127,-1542.36,0.00041917,31]
[313614263,1707478293138,-500.0,0.00041917,31]
[313614264,1707478293148,-184.51142861,0.00041917,31]
[313614265,1707478293158,-500.0,0.00041917,31]
[313614266,1707478293168,-500.0,0.00041917,31]
[313614267,1707478293177,-500.0,0.00041917,31]
[313614268,1707478293187,-3079.55,0.00041917,31]
[313614269,1707478293197,-508.73235405,0.00041917,31]
[313614270,1707478293206,-500.0,0.00041917,31]
[313614271,1707478293216,-500.0,0.00041917,31]
[313614272,1707478293226,-500.0,0.00041917,31]
[313614273,1707478293235,-665.12,0.00041917,31]
[313614274,1707478293245,-500.0,0.00041917,31]
[313614275,1707478293255,-14576.02,0.00041917,31]
[313614276,1707478293266,-500.0,0.00041917,31]
[313614277,1707478293276,-500.0,0.00041917,31]
[313614278,1707478293285,-3728.94,0.00041917,31]
[313614279,1707478293295,-500.0,0.00041917,31]
[313614280,1707478293305,-500.0,0.00041917,31]
[313614281,1707478293314,-1534.74,0.00041917,31]
[313614282,1707478293325,-2772.18,0.00041917,31]
[313614283,1707478293334,-508.54011743,0.00041917,31]
[313614284,1707478293344,-500.0,0.00041917,31]
[313614285,1707478293354,-4294.62,0.00041917,31]
[313614286,1707478293363,-153.7951388,0.00041917,31]
[313614287,1707478293373,-500.0,0.00041917,31]
[313614288,1707478293383,-500.0,0.00041917,31]
[313614289,1707478293392,-500.0,0.00041917,31]
[313614290,1707478293402,-500.0,0.00041917,31]
[313614291,1707478293412,-500.0,0.00041917,31]
[313614292,1707478293422,-321.52843704,0.00041917,31]
[313614293,1707478293432,-500.0,0.00041917,31]
[313614294,1707478293442,-500.0,0.00041917,31]
[313614295,1707478293451,-4215.96,0.00041917,31]
[313614296,1707478293461,-500.0,0.00041917,31]
[313614297,1707478293472,-781.51,0.00041917,31]
[313614298,1707478293482,-500.0,0.00041917,31]
[313614299,1707478293492,-500.0,0.00041917,31]
[313614300,1707478293501,-2488.2,0.00041917,31]
[313614301,1707478293511,-500.0,0.00041917,31]
[313614302,1707478293520,-500.0,0.00041917,31]
[313614303,1707478293529,-9324.82,0.00041917,31]
[313614304,1707478293538,-678.53,0.00041917,31]
[313614305,1707478293548,-500.0,0.00041917,31]
[313614306,1707478293558,-500.0,0.00041917,31]
[313614307,1707478293567,-675.49,0.00041917,31]
[313614308,1707478293577,-500.0,0.00041917,31]
[313614309,1707478293586,-500.0,0.00041917,31]
[313614310,1707478293596,-2748.5,0.00041917,31]
[313614311,1707478293605,-500.0,0.00041917,31]
[313614312,1707478293614,-500.0,0.00041917,31]
[313614313,1707478293624,-500.0,0.00041917,31]
[313614314,1707478293634,-500.0,0.00041917,31]
[313614315,1707478293643,-975.13,0.00041917,31]
[313614316,1707478293654,-500.0,0.00041917,31]
[313614317,1707478293665,-11844.96,0.00041917,31]
[313614318,1707478293675,-500.0,0.00041917,31]
[313614319,1707478293684,-500.0,0.00041917,31]
[313614320,1707478293695,-1000.0,0.00041917,120]
[313614321,1707478293704,-899.47,0.00041917,31]
[313614322,1707478293714,-626.57,0.00041917,31]
[313614323,1707478293723,-500.0,0.00041917,31]
[313614324,1707478293734,-500.0,0.00041917,31]
[313614325,1707478293744,-1904.61,0.00041917,31]
[313614326,1707478293753,-1274.81,0.00041917,31]
[313614327,1707478293764,-500.0,0.00041917,31]
[313614328,1707478293773,-754.5,0.00041917,31]
[313614329,1707478293783,-500.0,0.00041917,31]
[313614330,1707478293792,-1043.16,0.00041917,31]
[313614331,1707478293803,-623.51,0.00041917,31]
[313614332,1707478293813,-500.0,0.00041917,31]
[313614333,1707478293823,-542.54,0.00041917,31]
[313614334,1707478293832,-500.0,0.00041917,31]
[313614335,1707478293842,-500.0,0.00041917,31]
[313614336,1707478293852,-3324.49,0.00041917,31]
[313614337,1707478293861,-3278.85,0.00041917,31]
[313614338,1707478293871,-2389.81,0.00041917,31]
[313614339,1707478293881,-29612.96,0.00041917,31]
[313614340,1707478293891,-500.0,0.00041917,31]
[313614341,1707478293900,-4911.39,0.00041917,31]
[313614342,1707478293909,-500.0,0.00041917,31]
[313614343,1707478293918,-500.0,0.00041917,31]
[313614344,1707478293927,-500.0,0.00041917,31]
[313614345,1707478293936,-13113.15,0.00041917,31]
[313614346,1707478293946,-6039.39,0.00041917,31]
[313614347,1707478293956,-3355.91,0.00041917,31]
[313614348,1707478293966,-500.0,0.00041917,31]
[313614349,1707478293975,-2113.45,0.00041917,31]
[313614350,1707478293985,-1572.14,0.00041917,31]
[313614351,1707478293995,-1246.04,0.00041917,31]
[313614352,1707478294006,-500.0,0.00041917,31]
[313614353,1707478294017,-602.59,0.00041917,31]
[313614354,1707478294026,-500.0,0.00041917,31]
[313614355,1707478294036,-1188.57,0.00041917,31]
[313614356,1707478294045,-696.99,0.00041917,31]
[313614357,1707478294055,-681.34,0.00041917,31]
[313614358,1707478294065,-1939.66,0.00041917,31]
[313614359,1707478294075,-1684.64,0.00041917,31]
[313614360,1707478294086,-500.0,0.00041917,31]
[313614361,1707478294095,-500.0,0.00041917,31]
[313614362,1707478294106,-600.2,0.00041917,31]
[313614363,1707478294115,-500.0,0.00041917,31]
[313614364,1707478294125,-799.87,0.00041917,31]
[313614365,1707478294135,-500.0,0.00041917,31]
[313614366,1707478294145,-500.0,0.00041917,31]
[313614367,1707478294155,-582.07377081,0.00041917,31]
[313614368,1707478294164,-500.0,0.00041917,31]
[313614369,1707478294174,-559.12,0.00041917,31]
[313614370,1707478294183,-500.0,0.00041917,31]
[313614371,1707478294193,-935.99,0.00041917,31]
[313614372,1707478294203,-1044.42,0.00041917,31]
[313614373,1707478294212,-882.4,0.00041917,31]
[313614374,1707478294223,-500.0,0.00041917,31]
[313614375,1707478294233,-20153.9,0.00041917,31]
[313614376,1707478294243,-500.0,0.00041917,31]
[313614377,1707478294252,-640.35,0.00041917,31]
[313614378,1707478294263,-500.0,0.00041917,31]
[313614379,1707478294273,-25934.37,0.00041917,31]
[313614380,1707478294283,-500.0,0.00041917,31]
[313614381,1707478294292,-500.0,0.00041917,31]
[313614382,1707478294301,-622.6,0.00041917,31]
[313614383,1707478294311,-843.7,0.00041917,31]
[313614384,1707478294321,-500.0,0.00041917,31]
[313614385,1707478294331,-1000.0,0.00041917,7]
[313614386,1707478294340,-500.0,0.00041917,31]
[313614387,1707478294350,-500.0,0.00041917,31]
[313614388,1707478294361,-2823.8,0.00041917,31]
[313614389,1707478294371,-2886.01,0.00041917,31]
[313614390,1707478294381,-500.0,0.00041917,31]
[313614391,1707478294392,-500.0,0.00041917,31]
[313614392,1707478294402,-500.0,0.00041917,31]
[313614393,1707478294412,-500.0,0.00041917,31]
[313614394,1707478294422,-521.94,0.00041917,31]
[313614395,1707478294432,-500.0,0.00041917,31]
[313614396,1707478294442,-500.0,0.00041917,31]
[313614397,1707478294452,-500.0,0.00041917,31]
[313614398,1707478294462,-500.0,0.00041917,31]
[313614399,1707478294472,-500.0,0.00041917,31]
[313614400,1707478294481,-1268.04,0.00041917,31]
[313614401,1707478294491,-2930.63,0.00041917,31]
[313614402,1707478294501,-745.9,0.00041917,31]
[313614403,1707478294511,-4064.43,0.00041917,31]
[313614404,1707478294521,-778.82,0.00041917,31]
[313614405,1707478294531,-666.5,0.00041917,31]
[313614406,1707478294542,-812.31,0.00041917,31]
[313614407,1707478294551,-500.0,0.00041917,31]
[313614408,1707478294561,-500.0,0.00041917,31]
[313614409,1707478294571,-963.44,0.00041917,31]
[313614410,1707478294581,-500.0,0.00041917,31]
[313614411,1707478294591,-2199.8,0.00041917,31]
[313614412,1707478294601,-500.0,0.00041917,31]
[313614413,1707478294611,-1387.08,0.00041917,31]
[313614414,1707478294621,-3128.15,0.00041917,31]
[313614415,1707478294630,-2386.69,0.00041917,31]
[313614416,1707478294641,-517.21887898,0.00041917,31]
[313614417,1707478294651,-500.0,0.00041917,31]
[313614418,1707478294664,-500.0,0.00041917,31]
[313614419,1707478294674,-546.79,0.00041917,31]
[313614420,1707478294684,-968.27,0.00041917,31]
[313614421,1707478294694,-500.0,0.00041917,31]
[313614422,1707478294704,-500.0,0.00041917,31]
[313614423,1707478294714,-500.0,0.00041917,31]
[313614424,1707478294724,-500.0,0.00041917,31]
[313614425,1707478294734,-951.94,0.00041917,31]
[313614426,1707478294745,-509.39340442,0.00041917,31]
[313614427,1707478294755,-500.0,0.00041917,31]
[313614428,1707478294765,-500.0,0.00041917,31]
[313614429,1707478294775,-500.0,0.00041917,31]
[313614430,1707478294785,-706.13,0.00041917,31]
[313614431,1707478294795,-1055.58,0.00041917,31]
[313614432,1707478294804,-500.0,0.00041917,31]
[313614433,1707478294814,-500.0,0.00041917,31]
[313614434,1707478294824,-1300.65,0.00041917,31]
[313614435,1707478294836,-963.24,0.00041917,31]
[313614436,1707478294846,-810.99,0.00041917,31]
[313614437,1707478294857,-150.67373363,0.00041917,31]
[313614438,1707478294867,-500.0,0.00041917,31]
[313614439,1707478294877,-1821.0,0.00041917,31]
[313614440,1707478294887,-500.0,0.00041917,31]
[313614441,1707478294896,-500.0,0.00041917,31]
[313614442,1707478294906,-500.0,0.00041917,31]
[313614443,1707478294916,-500.0,0.00041917,31]
[313614444,1707478294926,-524.96,0.00041917,31]
[313614445,1707478294940,-504.01552417,0.00041917,31]
[313614446,1707478294950,-1022.47,0.00041917,31]
[313614447,1707478294960,-500.0,0.00041917,31]
[313614448,1707478294970,-500.0,0.00041917,31]
[313614449,1707478294980,-376.23282185,0.00041917,31]
[313614450,1707478294990,-500.0,0.00041917,31]
[313614451,1707478295000,-189.63271929,0.00041917,31]
[313614452,1707478295011,-5273.84,0.00041917,31]
[313614453,1707478295021,-173.15594208,0.00041917,31]
[313614454,1707478295032,-500.0,0.00041917,31]
[313614455,1707478295042,-500.0,0.00041917,31]
[313614456,1707478295052,-4888.99,0.00041917,31]
[313614457,1707478295062,-500.0,0.00041917,31]
[313614458,1707478295073,-500.0,0.00041917,31]
[313614459,1707478295083,-500.0,0.00041917,31]
[313614460,1707478295093,-1053.65,0.00041917,31]
[313614461,1707478295103,-5843.69,0.00041917,31]
[313614462,1707478295113,-500.0,0.00041917,31]
[313614463,1707478295124,-500.0,0.00041917,31]
[313614464,1707478295135,-500.0,0.00041917,31]
[313614465,1707478295145,-1980.1,0.00041917,31]
[313614466,1707478295155,-500.0,0.00041917,31]
[313614467,1707478295166,-476.28358563,0.00041917,31]
[313614468,1707478295176,-1000.0,0.00041918,6]
[313614469,1707478295186,-259.36792,0.00041918,14]
[313614470,1707478295197,-2197.076472,0.00041933,5]
[313614471,1707478295207,-180.45573626,0.00041936,30]
[313614472,1707478295218,-296.92888083,0.00041936,30]
[313614473,1707478295230,-233.53418618,0.00041936,30]
[313614474,1707478295241,-189.86895007,0.00041936,30]
[313614475,1707478295252,-19383.83756072,0.00041936,2]
[313614476,1707478295264,-257.68721624,0.00041936,30]
[313614477,1707478295275,-40962.0,0.00041936,30]
[313614478,1707478295286,-4192.97367314,0.00041936,2]
[313614479,1707478295297,-3916.87561089,0.00041936,30]
[313614480,1707478295308,-8579.42205837,0.00041936,7]
[313614481,1707478295319,-4809.44578967,0.00041936,30]
[313614482,1707478295330,-3763.42132081,0.00041936,30]
[313614483,1707478295341,-9832.16718577,0.00041936,2]
[313614484,1707478295352,-534.52227832,0.00041936,5]
[313614485,1707478295363,-65458.43912462,0.00041936,32]
[313614486,1707478295374,-1887.49705757,0.00041936,5]
[313614487,1707478295385,-929.08898935,0.00041936,5]
[313614488,1707478295397,-663.23209403,0.00041936,7]
[313614489,1707478295408,-4815.71936075,0.00041936,2]
[313614490,1707478295419,-173.70561332,0.00041936,2]
[313614491,1707478295430,-6122.66629567,0.00041936,2]
[313614492,1707478295441,-563.44051064,0.00041936,5]
[313614493,1707478295452,-161.45241967,0.00041936,2]
[313614494,1707478295463,-8875.94389315,0.00041936,2]
[313614495,1707478295474,-1260.45113312,0.00041936,2]
[313614496,1707478295485,-4752.04965629,0.00041936,2]
[313614497,1707478295496,-6761.07720434,0.00041936,2]
[313614498,1707478295506,-4417.03445945,0.00041936,2]
[313614499,1707478295518,-17879.21923515,0.00041936,5]
[313614500,1707478295529,-1099.78093861,0.00041936,2]
[313614501,1707478295540,-4699.96420495,0.00041936,5]
[313614502,1707478295550,-933.05914511,0.00041936,5]
[313614503,1707478295560,-231.29270139,0.00041936,5]
[313614504,1707478295571,-8979.88002351,0.00041936,3]
[313614505,1707478295582,-24680.08184883,0.00041936,5]
[313614506,1707478295593,-333.35044024,0.00041936,5]
[313614507,1707478295604,-1043.51667218,0.00041936,2]
[313614508,1707478295614,-173.56356223,0.00041936,14]
[313614509,1707478295624,-408546.15833737,0.00041936,10]
[313614510,1707478295634,-526675.38996987,0.00041936,7]
[313614511,1707478296401,-4218.3,0.00041369,31]